[Event "Titled Tuesday Blitz April 11 Early 2023"]
[White "Ruge, Edison"]
[Black "Jeet, Jain"]
[WhiteFideId "4401000"]
[BlackFideId "5073022"]
[WhiteElo "2175"]
[BlackElo "2067"]
[Result "0-1"]
[Round "01"]
[TimeControl "180+2"]
[Date "2023.04.11"]
[WhiteClock "0:00:46"]
[BlackClock "0:01:51"]

1. e4 {[%clk 0:02:57]}  c6 {[%clk 0:03:00]} 2. d3 {[%clk 0:02:56]}  d5 {[%clk 0:03:00]} 3. Nd2 {[%clk 0:02:57]}  e5 {[%clk 0:02:57]} 4. Ngf3 {[%clk 0:02:56]}  Bd6 {[%clk 0:02:57]} 5. g3 {[%clk 0:02:54]}  Ne7 {[%clk 0:02:55]} 6. Bg2 {[%clk 0:02:55]}  O-O {[%clk 0:02:55]} 7. O-O {[%clk 0:02:53]}  f5 {[%clk 0:02:55]} 8. Qe2 {[%clk 0:02:49]}  fxe4 {[%clk 0:02:53]} 9. dxe4 {[%clk 0:02:49]}  Ng6 {[%clk 0:02:52]} 10. h3 {[%clk 0:02:42]}  Nd7 {[%clk 0:02:45]} 11. b3 {[%clk 0:02:34]}  Nf6 {[%clk 0:02:44]} 12. Bb2 {[%clk 0:02:32]}  Re8 {[%clk 0:02:44]} 13. Rad1 {[%clk 0:02:31]}  Qc7 {[%clk 0:02:40]} 14. Rfe1 {[%clk 0:02:31]}  a5 {[%clk 0:02:40]} 15. a4 {[%clk 0:02:29]}  b6 {[%clk 0:02:39]} 16. c4 {[%clk 0:02:29]}  d4 {[%clk 0:02:39]} 17. Qd3 {[%clk 0:02:19]}  Nd7 {[%clk 0:02:36]} 18. Bf1 {[%clk 0:02:16]}  Nc5 {[%clk 0:02:36]} 19. Qc2 {[%clk 0:02:16]}  Rf8 {[%clk 0:02:31]} 20. Kg2 {[%clk 0:01:52]}  Bd7 {[%clk 0:02:30]} 21. Ng1 {[%clk 0:01:49]}  Rf7 {[%clk 0:02:28]} 22. Ndf3 {[%clk 0:01:48]}  Raf8 {[%clk 0:02:28]} 23. Rd2 {[%clk 0:01:45]}  Qc8 {[%clk 0:02:26]} 24. Ng5 {[%clk 0:01:43]}  Rf6 {[%clk 0:02:25]} 25. Ba3 {[%clk 0:01:26]}  h6 {[%clk 0:02:24]} 26. Bxc5 {[%clk 0:01:25]}  Bxc5 {[%clk 0:02:21]} 27. N5f3 {[%clk 0:01:24]}  Bb4 {[%clk 0:02:20]} 28. Ree2 {[%clk 0:01:21]}  Bxd2 {[%clk 0:02:19]} 29. Rxd2 {[%clk 0:01:21]}  Bxh3+ {[%clk 0:02:17]} 30. Nxh3 {[%clk 0:01:19]}  Rxf3 {[%clk 0:02:18]} 31. Ng1 {[%clk 0:01:17]}  Rc3 {[%clk 0:02:12]} 32. Qd1 {[%clk 0:01:14]}  Qd8 {[%clk 0:02:08]} 33. Rd3 {[%clk 0:01:12]}  Rxd3 {[%clk 0:02:07]} 34. Bxd3 {[%clk 0:01:11]}  Qg5 {[%clk 0:02:08]} 35. Kh2 {[%clk 0:00:54]}  Rxf2+ {[%clk 0:01:58]} 36. Kh3 {[%clk 0:00:49]}  Nf4+ {[%clk 0:01:52]} 37. gxf4 {[%clk 0:00:46]}  Qg2+ {[%clk 0:01:52]} 38. Kh4 {[%clk 0:00:46]}  Rxf4+ {[%clk 0:01:51]} 0-1


[Site "https://www.chess.com"]

[Event "Titled Tuesday Blitz April 11 Early 2023"]
[White "Eynullayev, Atilla"]
[Black "Tqebuchava, Zurab"]
[WhiteFideId "13413570"]
[BlackFideId "13601113"]
[WhiteElo "2181"]
[BlackElo "2203"]
[Result "1-0"]
[Round "01"]
[TimeControl "180+2"]
[Date "2023.04.11"]
[WhiteClock "0:00:23"]
[BlackClock "0:00:01"]

1. d4 {[%clk 0:03:00]}  Nf6 {[%clk 0:02:54]} 2. c4 {[%clk 0:03:00]}  e6 {[%clk 0:02:49]} 3. Nc3 {[%clk 0:03:01]}  b6 {[%clk 0:02:27]} 4. e4 {[%clk 0:02:58]}  Bb4 {[%clk 0:02:22]} 5. f3 {[%clk 0:02:55]}  Bxc3+ {[%clk 0:02:22]} 6. bxc3 {[%clk 0:02:55]}  d6 {[%clk 0:02:23]} 7. Ne2 {[%clk 0:02:55]}  e5 {[%clk 0:02:14]} 8. Ng3 {[%clk 0:02:53]}  Nc6 {[%clk 0:02:11]} 9. Be2 {[%clk 0:02:28]}  h5 {[%clk 0:02:10]} 10. h4 {[%clk 0:02:25]}  Bd7 {[%clk 0:02:01]} 11. Bg5 {[%clk 0:02:25]}  Qe7 {[%clk 0:01:58]} 12. O-O {[%clk 0:02:09]}  Nd8 {[%clk 0:01:45]} 13. d5 {[%clk 0:02:05]}  Nb7 {[%clk 0:01:43]} 14. f4 {[%clk 0:02:00]}  O-O-O {[%clk 0:01:28]} 15. a4 {[%clk 0:01:37]}  a5 {[%clk 0:01:27]} 16. fxe5 {[%clk 0:01:21]}  Qxe5 {[%clk 0:01:23]} 17. Bf4 {[%clk 0:01:20]}  Qxc3 {[%clk 0:01:13]} 18. Rf3 {[%clk 0:01:20]}  Qb4 {[%clk 0:00:44]} 19. Rb3 {[%clk 0:00:54]}  Bxa4 {[%clk 0:00:42]} 20. Rxb4 {[%clk 0:00:55]}  Bxd1 {[%clk 0:00:41]} 21. Bxd1 {[%clk 0:00:55]}  axb4 {[%clk 0:00:40]} 22. Ra8+ {[%clk 0:00:39]}  Kd7 {[%clk 0:00:40]} 23. Ba4+ {[%clk 0:00:40]}  Ke7 {[%clk 0:00:35]} 24. Ra7 {[%clk 0:00:40]}  Rb8 {[%clk 0:00:28]} 25. Bc6 {[%clk 0:00:40]}  g6 {[%clk 0:00:19]} 26. Bxb7 {[%clk 0:00:37]}  b3 {[%clk 0:00:18]} 27. Bc1 {[%clk 0:00:35]}  Nd7 {[%clk 0:00:16]} 28. Bc6 {[%clk 0:00:34]}  Rhc8 {[%clk 0:00:16]} 29. Ra1 {[%clk 0:00:30]}  Nc5 {[%clk 0:00:15]} 30. Bg5+ {[%clk 0:00:30]}  f6 {[%clk 0:00:15]} 31. Bc1 {[%clk 0:00:28]}  Nd3 {[%clk 0:00:13]} 32. Bd2 {[%clk 0:00:25]}  Nc5 {[%clk 0:00:12]} 33. Kf2 {[%clk 0:00:24]}  Kf7 {[%clk 0:00:11]} 34. Ke3 {[%clk 0:00:24]}  b2 {[%clk 0:00:10]} 35. Rb1 {[%clk 0:00:24]}  Na6 {[%clk 0:00:09]} 36. Rxb2 {[%clk 0:00:24]}  Nc5 {[%clk 0:00:09]} 37. Bc3 {[%clk 0:00:24]}  Re8 {[%clk 0:00:09]} 38. Rf2 {[%clk 0:00:25]}  Re5 {[%clk 0:00:06]} 39. Bxe5 {[%clk 0:00:24]}  dxe5 {[%clk 0:00:06]} 40. d6 {[%clk 0:00:24]}  cxd6 {[%clk 0:00:05]} 41. Bd5+ {[%clk 0:00:25]}  Kg7 {[%clk 0:00:05]} 42. Ra2 {[%clk 0:00:26]}  Rf8 {[%clk 0:00:03]} 43. Ra7+ {[%clk 0:00:26]}  Kh6 {[%clk 0:00:03]} 44. Nh1 {[%clk 0:00:23]}  Rh8 {[%clk 0:00:03]} 45. Nf2 {[%clk 0:00:23]}  Rf8 {[%clk 0:00:02]} 46. g4 {[%clk 0:00:23]}  hxg4 {[%clk 0:00:02]} 47. Nxg4+ {[%clk 0:00:23]}  Kh5 {[%clk 0:00:01]} 48. Kf3 {[%clk 0:00:23]} 1-0


[Site "https://www.chess.com"]

[Event "Titled Tuesday Blitz April 11 Early 2023"]
[White "Filgueira, Hernan"]
[Black "Kowalysko, Roman"]
[WhiteFideId "101770"]
[BlackFideId "30918510"]
[WhiteElo "2363"]
[BlackElo "2181"]
[Result "1-0"]
[Round "01"]
[TimeControl "180+2"]
[Date "2023.04.11"]
[WhiteClock "0:00:57"]
[BlackClock "0:00:40"]

1. c4 {[%clk 0:02:59]}  Nf6 {[%clk 0:02:58]} 2. Nc3 {[%clk 0:02:59]}  g6 {[%clk 0:02:59]} 3. g3 {[%clk 0:02:59]}  Bg7 {[%clk 0:02:59]} 4. Bg2 {[%clk 0:02:59]}  O-O {[%clk 0:03:00]} 5. Nf3 {[%clk 0:02:59]}  d6 {[%clk 0:03:00]} 6. d3 {[%clk 0:02:57]}  Nbd7 {[%clk 0:03:01]} 7. O-O {[%clk 0:02:57]}  e5 {[%clk 0:03:01]} 8. Rb1 {[%clk 0:02:56]}  a5 {[%clk 0:02:59]} 9. a3 {[%clk 0:02:56]}  c6 {[%clk 0:02:58]} 10. b4 {[%clk 0:02:55]}  axb4 {[%clk 0:02:55]} 11. axb4 {[%clk 0:02:55]}  Qe7 {[%clk 0:02:50]} 12. e4 {[%clk 0:02:53]}  Rd8 {[%clk 0:02:49]} 13. Re1 {[%clk 0:02:43]}  Nf8 {[%clk 0:02:49]} 14. h3 {[%clk 0:02:42]}  Ne6 {[%clk 0:02:49]} 15. Be3 {[%clk 0:02:40]}  Bd7 {[%clk 0:02:39]} 16. Qd2 {[%clk 0:02:37]}  Ra3 {[%clk 0:02:39]} 17. Ra1 {[%clk 0:02:31]}  Rda8 {[%clk 0:02:39]} 18. Qb2 {[%clk 0:02:30]}  Rxa1 {[%clk 0:02:32]} 19. Rxa1 {[%clk 0:02:29]}  Rxa1+ {[%clk 0:02:32]} 20. Qxa1 {[%clk 0:02:30]}  Qd8 {[%clk 0:02:30]} 21. Qa7 {[%clk 0:02:25]}  Qc8 {[%clk 0:02:28]} 22. Kh2 {[%clk 0:02:25]}  Ne8 {[%clk 0:02:23]} 23. Na4 {[%clk 0:02:23]}  Nd4 {[%clk 0:02:05]} 24. Bxd4 {[%clk 0:02:18]}  exd4 {[%clk 0:02:06]} 25. Nb6 {[%clk 0:02:18]}  Qd8 {[%clk 0:02:05]} 26. Qxb7 {[%clk 0:02:15]}  Nc7 {[%clk 0:01:55]} 27. h4 {[%clk 0:01:56]}  h5 {[%clk 0:01:49]} 28. Ng5 {[%clk 0:01:51]}  Bf6 {[%clk 0:01:45]} 29. Nh3 {[%clk 0:01:48]}  Bxh3 {[%clk 0:01:39]} 30. Bxh3 {[%clk 0:01:47]}  g5 {[%clk 0:01:39]} 31. hxg5 {[%clk 0:01:44]}  Bxg5 {[%clk 0:01:39]} 32. Qc8 {[%clk 0:01:38]}  h4 {[%clk 0:01:32]} 33. Qxd8+ {[%clk 0:01:30]}  Bxd8 {[%clk 0:01:33]} 34. Bd7 {[%clk 0:01:28]}  hxg3+ {[%clk 0:01:32]} 35. Kxg3 {[%clk 0:01:28]}  c5 {[%clk 0:01:30]} 36. bxc5 {[%clk 0:01:24]}  dxc5 {[%clk 0:01:30]} 37. Na4 {[%clk 0:01:24]}  Be7 {[%clk 0:01:27]} 38. f4 {[%clk 0:01:24]}  Na6 {[%clk 0:01:15]} 39. Kf3 {[%clk 0:01:23]}  Nb4 {[%clk 0:01:15]} 40. Ke2 {[%clk 0:01:22]}  Kg7 {[%clk 0:01:14]} 41. Nb6 {[%clk 0:01:16]}  f6 {[%clk 0:01:08]} 42. Be6 {[%clk 0:01:13]}  Bd6 {[%clk 0:01:07]} 43. f5 {[%clk 0:01:09]}  Kf8 {[%clk 0:00:58]} 44. Na4 {[%clk 0:01:06]}  Ke7 {[%clk 0:00:57]} 45. Nb2 {[%clk 0:01:06]}  Nc6 {[%clk 0:00:56]} 46. Nd1 {[%clk 0:01:05]}  Ne5 {[%clk 0:00:57]} 47. Nf2 {[%clk 0:01:05]}  Bc7 {[%clk 0:00:56]} 48. Bd5 {[%clk 0:01:04]}  Kd6 {[%clk 0:00:56]} 49. Nh3 {[%clk 0:01:01]}  Bd8 {[%clk 0:00:56]} 50. Nf4 {[%clk 0:01:01]}  Be7 {[%clk 0:00:44]} 51. Ng6 {[%clk 0:00:57]}  Nxg6 {[%clk 0:00:40]} 52. fxg6 {[%clk 0:00:57]}  Ke5 {[%clk 0:00:40]} 53. g7 {[%clk 0:00:57]} 1-0


[Site "https://www.chess.com"]

[Event "Titled Tuesday Blitz April 11 Early 2023"]
[White "Gontcharov, Vladislav"]
[Black "rionelG"]
[WhiteFideId "4123492"]
[WhiteElo "2420"]
[BlackElo "2179"]
[Result "1-0"]
[Round "01"]
[TimeControl "180+2"]
[Date "2023.04.11"]
[WhiteClock "0:00:20"]
[BlackClock "0:00:02"]

1. d4 {[%clk 0:02:59]}  Nf6 {[%clk 0:02:45]} 2. c4 {[%clk 0:02:58]}  g6 {[%clk 0:02:45]} 3. Nc3 {[%clk 0:02:58]}  Bg7 {[%clk 0:02:45]} 4. Nf3 {[%clk 0:02:48]}  O-O {[%clk 0:02:45]} 5. Bg5 {[%clk 0:02:47]}  d6 {[%clk 0:02:39]} 6. e3 {[%clk 0:02:47]}  h6 {[%clk 0:02:38]} 7. Bh4 {[%clk 0:02:47]}  g5 {[%clk 0:02:35]} 8. Bg3 {[%clk 0:02:47]}  Nh5 {[%clk 0:02:35]} 9. Qc2 {[%clk 0:02:44]}  c5 {[%clk 0:02:20]} 10. d5 {[%clk 0:02:33]}  f5 {[%clk 0:02:16]} 11. Be2 {[%clk 0:02:30]}  a6 {[%clk 0:01:53]} 12. Nd2 {[%clk 0:02:23]}  Qe8 {[%clk 0:01:32]} 13. f3 {[%clk 0:01:59]}  Nxg3 {[%clk 0:00:58]} 14. hxg3 {[%clk 0:01:58]}  e5 {[%clk 0:00:37]} 15. g4 {[%clk 0:01:34]}  f4 {[%clk 0:00:14]} 16. Nde4 {[%clk 0:01:29]}  Qe7 {[%clk 0:00:12]} 17. O-O-O {[%clk 0:01:12]}  Nd7 {[%clk 0:00:12]} 18. Kb1 {[%clk 0:01:11]}  Rb8 {[%clk 0:00:12]} 19. Bd3 {[%clk 0:00:52]}  Nf6 {[%clk 0:00:11]} 20. Nxf6+ {[%clk 0:00:48]}  Qxf6 {[%clk 0:00:12]} 21. Rde1 {[%clk 0:00:42]}  Bd7 {[%clk 0:00:10]} 22. Ne4 {[%clk 0:00:33]}  Qe7 {[%clk 0:00:09]} 23. exf4 {[%clk 0:00:21]}  Rxf4 {[%clk 0:00:10]} 24. Ng3 {[%clk 0:00:19]}  b5 {[%clk 0:00:09]} 25. Be4 {[%clk 0:00:20]}  bxc4 {[%clk 0:00:08]} 26. Qxc4 {[%clk 0:00:19]}  Bb5 {[%clk 0:00:05]} 27. Qc2 {[%clk 0:00:19]}  Rf7 {[%clk 0:00:04]} 28. Nf5 {[%clk 0:00:20]}  Qc7 {[%clk 0:00:03]} 29. Nxh6+ {[%clk 0:00:19]}  Bxh6 {[%clk 0:00:02]} 30. Rxh6 {[%clk 0:00:20]}  Qb6 {[%clk 0:00:02]} 31. Reh1 {[%clk 0:00:20]} 1-0


[Site "https://www.chess.com"]

[Event "Titled Tuesday Blitz April 11 Early 2023"]
[White "Prohorov, Olexandr"]
[Black "Horak, Martin"]
[WhiteFideId "14105578"]
[BlackFideId "367095"]
[WhiteElo "1966"]
[BlackElo "2091"]
[Result "1-0"]
[Round "01"]
[TimeControl "180+2"]
[Date "2023.04.11"]
[WhiteClock "0:01:37"]
[BlackClock "0:00:01"]

1. d4 {[%clk 0:02:59]}  Nf6 {[%clk 0:02:59]} 2. c4 {[%clk 0:02:58]}  c5 {[%clk 0:02:57]} 3. d5 {[%clk 0:02:58]}  b5 {[%clk 0:02:58]} 4. cxb5 {[%clk 0:02:59]}  a6 {[%clk 0:02:58]} 5. f3 {[%clk 0:02:59]}  g6 {[%clk 0:02:55]} 6. e4 {[%clk 0:02:57]}  d6 {[%clk 0:02:55]} 7. Ne2 {[%clk 0:02:49]}  Bg7 {[%clk 0:02:56]} 8. Nec3 {[%clk 0:02:49]}  O-O {[%clk 0:02:56]} 9. Na3 {[%clk 0:02:48]}  Ne8 {[%clk 0:02:52]} 10. Be2 {[%clk 0:02:47]}  Nd7 {[%clk 0:02:50]} 11. O-O {[%clk 0:02:47]}  Nc7 {[%clk 0:02:51]} 12. Bg5 {[%clk 0:02:44]}  Re8 {[%clk 0:02:49]} 13. Qd2 {[%clk 0:02:44]}  axb5 {[%clk 0:02:48]} 14. Naxb5 {[%clk 0:02:43]}  Ba6 {[%clk 0:02:47]} 15. a4 {[%clk 0:02:43]}  Nxb5 {[%clk 0:02:42]} 16. axb5 {[%clk 0:02:42]}  Bb7 {[%clk 0:02:42]} 17. f4 {[%clk 0:02:35]}  Nf6 {[%clk 0:02:16]} 18. Bc4 {[%clk 0:02:30]}  Qc7 {[%clk 0:02:02]} 19. Rae1 {[%clk 0:02:24]}  Nd7 {[%clk 0:01:51]} 20. h3 {[%clk 0:02:09]}  Nb6 {[%clk 0:01:49]} 21. Bd3 {[%clk 0:02:06]}  Na4 {[%clk 0:01:31]} 22. Nd1 {[%clk 0:01:59]}  c4 {[%clk 0:01:28]} 23. Bb1 {[%clk 0:01:59]}  Qc5+ {[%clk 0:01:20]} 24. Kh1 {[%clk 0:01:59]}  Qxb5 {[%clk 0:01:19]} 25. f5 {[%clk 0:01:59]}  Rac8 {[%clk 0:01:06]} 26. fxg6 {[%clk 0:01:56]}  fxg6 {[%clk 0:00:50]} 27. Qf4 {[%clk 0:01:53]}  Rf8 {[%clk 0:00:38]} 28. Qg4 {[%clk 0:01:51]}  Rxf1+ {[%clk 0:00:33]} 29. Rxf1 {[%clk 0:01:50]}  c3 {[%clk 0:00:33]} 30. Qe6+ {[%clk 0:01:48]}  Kh8 {[%clk 0:00:31]} 31. Rf7 {[%clk 0:01:49]}  Rg8 {[%clk 0:00:15]} 32. Qxe7 {[%clk 0:01:47]}  Nxb2 {[%clk 0:00:03]} 33. Bf6 {[%clk 0:01:41]}  Qf1+ {[%clk 0:00:01]} 34. Kh2 {[%clk 0:01:42]}  Qf4+ {[%clk 0:00:01]} 35. Kg1 {[%clk 0:01:37]} 1-0


[Site "https://www.chess.com"]

[Event "Titled Tuesday Blitz April 11 Early 2023"]
[White "Hua, Lefong"]
[Black "dDobravcan"]
[WhiteFideId "2602253"]
[WhiteElo "2563"]
[BlackElo "2154"]
[Result "1-0"]
[Round "01"]
[TimeControl "180+2"]
[Date "2023.04.11"]
[WhiteClock "0:00:15"]
[BlackClock "0:00:04"]

1. d4 {[%clk 0:02:53]}  d6 {[%clk 0:02:59]} 2. e4 {[%clk 0:02:51]}  Nf6 {[%clk 0:02:57]} 3. f3 {[%clk 0:02:51]}  c6 {[%clk 0:02:57]} 4. c4 {[%clk 0:02:51]}  Qb6 {[%clk 0:02:55]} 5. Nc3 {[%clk 0:02:48]}  e5 {[%clk 0:02:54]} 6. Nge2 {[%clk 0:02:47]}  Be7 {[%clk 0:02:49]} 7. Rb1 {[%clk 0:02:39]}  O-O {[%clk 0:02:47]} 8. Be3 {[%clk 0:02:39]}  a5 {[%clk 0:02:40]} 9. Qd2 {[%clk 0:02:35]}  Qc7 {[%clk 0:02:39]} 10. b3 {[%clk 0:02:33]}  Re8 {[%clk 0:02:32]} 11. Ng3 {[%clk 0:02:29]}  Bf8 {[%clk 0:02:25]} 12. Be2 {[%clk 0:02:27]}  h5 {[%clk 0:02:05]} 13. O-O {[%clk 0:02:20]}  h4 {[%clk 0:02:02]} 14. Nh1 {[%clk 0:02:20]}  h3 {[%clk 0:02:02]} 15. g3 {[%clk 0:02:19]}  exd4 {[%clk 0:01:53]} 16. Bxd4 {[%clk 0:02:20]}  Na6 {[%clk 0:01:49]} 17. Nf2 {[%clk 0:02:12]}  Nc5 {[%clk 0:01:44]} 18. g4 {[%clk 0:01:58]}  Nfd7 {[%clk 0:01:19]} 19. Nxh3 {[%clk 0:01:53]}  b6 {[%clk 0:01:18]} 20. Nf2 {[%clk 0:01:46]}  Ne5 {[%clk 0:01:14]} 21. h3 {[%clk 0:01:43]}  Qe7 {[%clk 0:01:12]} 22. f4 {[%clk 0:01:34]}  Ng6 {[%clk 0:01:06]} 23. Bf3 {[%clk 0:01:33]}  Qh4 {[%clk 0:01:04]} 24. Ne2 {[%clk 0:01:07]}  b5 {[%clk 0:01:00]} 25. cxb5 {[%clk 0:00:54]}  cxb5 {[%clk 0:00:59]} 26. e5 {[%clk 0:00:43]}  Ra6 {[%clk 0:00:55]} 27. Bxc5 {[%clk 0:00:36]}  dxc5 {[%clk 0:00:51]} 28. Bg2 {[%clk 0:00:28]}  Rd8 {[%clk 0:00:50]} 29. Qe3 {[%clk 0:00:27]}  c4 {[%clk 0:00:42]} 30. bxc4 {[%clk 0:00:23]}  bxc4 {[%clk 0:00:40]} 31. Rbc1 {[%clk 0:00:20]}  Ne7 {[%clk 0:00:31]} 32. Rxc4 {[%clk 0:00:19]}  Be6 {[%clk 0:00:32]} 33. Rc2 {[%clk 0:00:17]}  a4 {[%clk 0:00:30]} 34. f5 {[%clk 0:00:17]}  Bd5 {[%clk 0:00:28]} 35. Qg3 {[%clk 0:00:17]}  Qh7 {[%clk 0:00:25]} 36. Nf4 {[%clk 0:00:16]}  Bxg2 {[%clk 0:00:22]} 37. Kxg2 {[%clk 0:00:17]}  Nxf5 {[%clk 0:00:20]} 38. gxf5 {[%clk 0:00:17]}  Qxf5 {[%clk 0:00:20]} 39. Re2 {[%clk 0:00:17]}  Re8 {[%clk 0:00:17]} 40. Ng4 {[%clk 0:00:18]}  a3 {[%clk 0:00:15]} 41. Nf6+ {[%clk 0:00:17]}  Rxf6 {[%clk 0:00:12]} 42. exf6 {[%clk 0:00:18]}  Qxf6 {[%clk 0:00:11]} 43. Rxe8 {[%clk 0:00:17]}  Qc6+ {[%clk 0:00:10]} 44. Rf3 {[%clk 0:00:16]}  Qxe8 {[%clk 0:00:09]} 45. Rf2 {[%clk 0:00:16]}  Qe4+ {[%clk 0:00:08]} 46. Qf3 {[%clk 0:00:16]}  Qf5 {[%clk 0:00:08]} 47. Re2 {[%clk 0:00:16]}  Bd6 {[%clk 0:00:07]} 48. Nh5 {[%clk 0:00:16]}  Qg6+ {[%clk 0:00:06]} 49. Qg4 {[%clk 0:00:16]}  Qh6 {[%clk 0:00:04]} 50. Ng3 {[%clk 0:00:15]} 1-0


[Site "https://www.chess.com"]

[Event "Titled Tuesday Blitz April 11 Early 2023"]
[White "Munro, Allan"]
[Black "Kozin, Yuri"]
[WhiteFideId "7700245"]
[BlackFideId "4129920"]
[WhiteElo "2084"]
[BlackElo "2557"]
[Result "0-1"]
[Round "01"]
[TimeControl "180+2"]
[Date "2023.04.11"]
[WhiteClock "0:00:23"]
[BlackClock "0:00:08"]

1. d4 {[%clk 0:02:59]}  d5 {[%clk 0:02:45]} 2. c4 {[%clk 0:02:58]}  c6 {[%clk 0:02:44]} 3. Nc3 {[%clk 0:02:58]}  Nf6 {[%clk 0:02:44]} 4. Nf3 {[%clk 0:02:56]}  dxc4 {[%clk 0:02:42]} 5. a4 {[%clk 0:02:56]}  Bf5 {[%clk 0:02:42]} 6. Ne5 {[%clk 0:02:54]}  e6 {[%clk 0:02:42]} 7. f3 {[%clk 0:02:53]}  Bb4 {[%clk 0:02:43]} 8. e4 {[%clk 0:02:53]}  Bxe4 {[%clk 0:02:43]} 9. fxe4 {[%clk 0:02:54]}  Nxe4 {[%clk 0:02:43]} 10. Bd2 {[%clk 0:02:54]}  Qxd4 {[%clk 0:02:44]} 11. Nxe4 {[%clk 0:02:54]}  Qxe4+ {[%clk 0:02:45]} 12. Qe2 {[%clk 0:02:47]}  Bxd2+ {[%clk 0:02:43]} 13. Kxd2 {[%clk 0:02:48]}  Qd5+ {[%clk 0:02:44]} 14. Kc2 {[%clk 0:02:40]}  Na6 {[%clk 0:02:44]} 15. Nxc4 {[%clk 0:02:38]}  O-O {[%clk 0:02:42]} 16. Qe5 {[%clk 0:02:18]}  f6 {[%clk 0:02:34]} 17. Qxd5 {[%clk 0:02:15]}  cxd5 {[%clk 0:02:35]} 18. Nd6 {[%clk 0:02:02]}  Nc5 {[%clk 0:02:28]} 19. b4 {[%clk 0:02:01]}  Na6 {[%clk 0:01:57]} 20. Kb3 {[%clk 0:01:38]}  Rab8 {[%clk 0:01:41]} 21. Be2 {[%clk 0:01:27]}  Nc7 {[%clk 0:00:49]} 22. Rac1 {[%clk 0:01:25]}  Na8 {[%clk 0:00:41]} 23. Nb5 {[%clk 0:01:19]}  a6 {[%clk 0:00:38]} 24. Nc7 {[%clk 0:01:19]}  Nxc7 {[%clk 0:00:27]} 25. Rxc7 {[%clk 0:01:20]}  Rf7 {[%clk 0:00:22]} 26. Rhc1 {[%clk 0:01:19]}  f5 {[%clk 0:00:20]} 27. Bf3 {[%clk 0:01:02]}  g5 {[%clk 0:00:19]} 28. g3 {[%clk 0:01:02]}  g4 {[%clk 0:00:19]} 29. Bg2 {[%clk 0:01:02]}  h5 {[%clk 0:00:19]} 30. R1c5 {[%clk 0:00:54]}  Rbf8 {[%clk 0:00:19]} 31. Rc2 {[%clk 0:00:35]}  h4 {[%clk 0:00:18]} 32. b5 {[%clk 0:00:27]}  axb5 {[%clk 0:00:18]} 33. axb5 {[%clk 0:00:28]}  Kg7 {[%clk 0:00:18]} 34. b6 {[%clk 0:00:27]}  Kf6 {[%clk 0:00:15]} 35. Rxf7+ {[%clk 0:00:27]}  Rxf7 {[%clk 0:00:16]} 36. Rc7 {[%clk 0:00:27]}  f4 {[%clk 0:00:10]} 37. gxf4 {[%clk 0:00:25]}  Kg6 {[%clk 0:00:07]} 38. Rxf7 {[%clk 0:00:20]}  Kxf7 {[%clk 0:00:07]} 39. f5 {[%clk 0:00:20]}  Kf6 {[%clk 0:00:06]} 40. Bxd5 {[%clk 0:00:20]}  exd5 {[%clk 0:00:06]} 41. Kc3 {[%clk 0:00:21]}  g3 {[%clk 0:00:06]} 42. Kd4 {[%clk 0:00:22]}  gxh2 {[%clk 0:00:06]} 43. Kxd5 {[%clk 0:00:22]}  h1=Q+ {[%clk 0:00:07]} 44. Kd6 {[%clk 0:00:23]}  Qc6# {[%clk 0:00:08]} 0-1


[Site "https://www.chess.com"]

[Event "Titled Tuesday Blitz April 11 Early 2023"]
[White "Barria Santos, Jose Guilherme"]
[Black "Shevtchenko, Olesya"]
[WhiteFideId "1939300"]
[BlackFideId "24131890"]
[WhiteElo "2266"]
[BlackElo "2003"]
[Result "0-1"]
[Round "01"]
[TimeControl "180+2"]
[Date "2023.04.11"]
[WhiteClock "0:00:21"]
[BlackClock "0:00:29"]

1. e4 {[%clk 0:03:00]}  c6 {[%clk 0:03:00]} 2. d3 {[%clk 0:03:00]}  d5 {[%clk 0:03:01]} 3. Nf3 {[%clk 0:02:59]}  Qc7 {[%clk 0:02:51]} 4. Nc3 {[%clk 0:02:54]}  dxe4 {[%clk 0:02:52]} 5. Nxe4 {[%clk 0:02:54]}  Nf6 {[%clk 0:02:52]} 6. Be2 {[%clk 0:02:47]}  Bf5 {[%clk 0:02:34]} 7. Nc3 {[%clk 0:02:46]}  Nbd7 {[%clk 0:02:32]} 8. O-O {[%clk 0:02:46]}  h6 {[%clk 0:02:28]} 9. d4 {[%clk 0:02:41]}  e6 {[%clk 0:02:24]} 10. Bd3 {[%clk 0:02:41]}  Bg4 {[%clk 0:02:21]} 11. Re1 {[%clk 0:02:37]}  Bd6 {[%clk 0:02:19]} 12. h3 {[%clk 0:02:33]}  Bxf3 {[%clk 0:02:16]} 13. Qxf3 {[%clk 0:02:33]}  O-O-O {[%clk 0:02:16]} 14. Ne4 {[%clk 0:02:33]}  Nxe4 {[%clk 0:02:11]} 15. Bxe4 {[%clk 0:02:34]}  Nf6 {[%clk 0:02:01]} 16. Bd3 {[%clk 0:02:34]}  e5 {[%clk 0:01:59]} 17. dxe5 {[%clk 0:02:27]}  Bxe5 {[%clk 0:02:00]} 18. Qf5+ {[%clk 0:02:22]}  Nd7 {[%clk 0:01:58]} 19. c3 {[%clk 0:02:07]}  f6 {[%clk 0:01:46]} 20. Be3 {[%clk 0:02:05]}  Kb8 {[%clk 0:01:44]} 21. a4 {[%clk 0:02:03]}  Rhe8 {[%clk 0:01:41]} 22. a5 {[%clk 0:02:01]}  Nf8 {[%clk 0:01:31]} 23. Be4 {[%clk 0:01:58]}  g6 {[%clk 0:01:25]} 24. Qf3 {[%clk 0:01:58]}  f5 {[%clk 0:01:24]} 25. Bc2 {[%clk 0:01:57]}  f4 {[%clk 0:00:53]} 26. Bc5 {[%clk 0:01:51]}  g5 {[%clk 0:00:51]} 27. Rad1 {[%clk 0:01:28]}  Nd7 {[%clk 0:00:44]} 28. Bd4 {[%clk 0:01:22]}  Bxd4 {[%clk 0:00:43]} 29. cxd4 {[%clk 0:01:19]}  Qxa5 {[%clk 0:00:42]} 30. Rxe8 {[%clk 0:01:14]}  Rxe8 {[%clk 0:00:43]} 31. Bf5 {[%clk 0:01:12]}  Nf6 {[%clk 0:00:41]} 32. Kh2 {[%clk 0:01:08]}  Qd5 {[%clk 0:00:41]} 33. Qd3 {[%clk 0:01:04]}  a6 {[%clk 0:00:38]} 34. Rc1 {[%clk 0:00:59]}  Rd8 {[%clk 0:00:37]} 35. Rc4 {[%clk 0:00:54]}  Qd6 {[%clk 0:00:35]} 36. Qd2 {[%clk 0:00:41]}  Nd5 {[%clk 0:00:32]} 37. Be4 {[%clk 0:00:40]}  Nb6 {[%clk 0:00:31]} 38. Rb4 {[%clk 0:00:39]}  Nd5 {[%clk 0:00:29]} 39. Rc4 {[%clk 0:00:39]}  Ne3 {[%clk 0:00:29]} 40. Rc1 {[%clk 0:00:22]}  Qxd4 {[%clk 0:00:29]} 41. Qxd4 {[%clk 0:00:21]}  Rxd4 {[%clk 0:00:30]} 42. fxe3 {[%clk 0:00:21]}  Rxe4 {[%clk 0:00:30]} 43. exf4 {[%clk 0:00:21]}  Rxf4 {[%clk 0:00:30]} 44. Kg3 {[%clk 0:00:22]}  Rb4 {[%clk 0:00:30]} 45. Rc2 {[%clk 0:00:22]}  a5 {[%clk 0:00:30]} 46. Re2 {[%clk 0:00:22]}  Ka7 {[%clk 0:00:29]} 47. Re6 {[%clk 0:00:20]}  h5 {[%clk 0:00:29]} 48. Re5 {[%clk 0:00:20]}  Rb5 {[%clk 0:00:27]} 49. Rxb5 {[%clk 0:00:17]}  cxb5 {[%clk 0:00:28]} 50. Kf3 {[%clk 0:00:18]}  a4 {[%clk 0:00:27]} 51. Ke4 {[%clk 0:00:19]}  b4 {[%clk 0:00:28]} 52. Kf5 {[%clk 0:00:20]}  a3 {[%clk 0:00:28]} 53. Kxg5 {[%clk 0:00:20]}  axb2 {[%clk 0:00:28]} 54. g4 {[%clk 0:00:21]}  b1=Q {[%clk 0:00:29]} 0-1


[Site "https://www.chess.com"]